{"text_format":"2","workbook":"xlsx","n_sheets":3,"sheets":["Лист1","Лист2","Лист3"],"not_rendered":{"charts":0,"images":0,"macros":0,"external_links":0,"defined_names":0,"comments":0,"pivot_tables":0},"unopened":[],"bounds":{"document_bytes":16777216,"sheet_cells":100000,"run_cost":"one","rows_first":2000,"rows_last":500,"rows_between":2000,"halvings":0,"cell_chars":16384,"cell_head_chars":4096},"cells_cut":0,"cells_raw":0,"read":"whole","date_system":"1900"}

{"sheet":"Лист1","index":0,"n_rows":12,"n_cols":8,"rows_kept":12,"cut":false,"hidden":false,"merged":[[11,0,11,6]]}
["Фамилия","Бег на 60 м \nс барьером","Прыжок \nв высоту","Толкание\nядра","Прыжок\nв длину","Бег на\n800 м","Сумма\nбаллов","Результат"]
["Иванов",35,40,35,23,30,{"$f":"SUM(B2:F2)","v":163},{"$f":"IF(G2>=100,\"Финалист\",\"Не финалист\")","v":"Финалист"}]
["Петров",4,6,11,22,3,{"$f":"SUM(B3:F3)","v":46},{"$f":"IF(G3>=100,\"Финалист\",\"Не финалист\")","v":"Не финалист"}]
["Сидоров",30,35,15,21,23,124,"Финалист"]
["Пончиков",7,11,16,13,5,52,"Не финалист"]
["Михайлов",25,34,34,33,21,147,"Финалист"]
["Иванушко",1,12,18,16,16,63,"Не финалист"]
["Гномиков",12,23,19,17,17,88,"Не финалист"]
["Елочкин",24,20,24,21,12,101,"Финалист"]
["Дмитриев",5,12,20,12,11,60,"Не финалист"]
["Сергин",7,11,11,11,12,52,"Не финалист"]
["Количество финалистов",{"$nulls":6},{"$f":"COUNTIF(H2:H11,\"Финалист\")","v":4}]

{"sheet":"Лист2","index":1,"n_rows":0,"n_cols":0,"rows_kept":0,"cut":false,"hidden":false,"merged":[]}

{"sheet":"Лист3","index":2,"n_rows":0,"n_cols":0,"rows_kept":0,"cut":false,"hidden":false,"merged":[]}